fUSD/lending_fUSD_20240628
["ID","MTS","AMOUNT","RATE_DAILY","PERIOD"]
[330591032,1719600053530,-176.54857333,0.00049116,30]
[330591033,1719600053568,-230.41111186,0.00049116,30]
[330591034,1719600053605,-531.3652091,0.00049166,30]
[330591035,1719600053643,-176.54857333,0.00049166,30]
[330591036,1719600053681,-230.41111186,0.00049166,30]
[330591037,1719600053719,-1688.0,0.00049178,120]
[330591038,1719600053758,-840.41,0.00049178,30]
[330591039,1719600053796,-150.0,0.00049185,30]
[330591040,1719600053834,-150.0,0.00049189,30]
[330591041,1719600053871,-245.527746,0.00049192,30]
[330591042,1719600053910,-244.931909,0.00049192,30]
[330591043,1719600053949,-163.287939,0.00049192,30]
[330591044,1719600053989,-163.685165,0.00049192,30]
[330591045,1719600054030,-531.3652091,0.00049215,30]
[330591046,1719600054071,-176.54857333,0.00049215,30]
[330591047,1719600054112,-230.41111186,0.00049215,30]
[330591048,1719600054153,-172.27777778,0.0004926,120]
[330591049,1719600054195,-531.3652091,0.00049265,30]
[330591050,1719600054235,-176.54857333,0.00049265,30]
[330591051,1719600054280,-230.41111186,0.00049265,30]
[330591052,1719600054318,-2608.00685015,0.00049298,60]
[330591053,1719600054358,-1039.0,0.00049298,30]
[330591054,1719600054395,-154.000164,0.000493,65]
[330591055,1719600054435,-201.0,0.0004931,30]
[330591056,1719600054477,-214.0,0.0004931,30]
[330591057,1719600054533,-210.0,0.0004931,30]
[330591058,1719600054578,-229.0,0.0004931,30]
[330591059,1719600054617,-224.0,0.0004931,30]
[330591060,1719600054656,-208.0,0.0004931,30]
[330591061,1719600054695,-211.0,0.0004931,30]
[330591062,1719600054736,-208.0,0.0004931,30]
[330591063,1719600054778,-208.0,0.0004931,30]
[330591064,1719600054818,-213.0,0.0004931,30]
[330591065,1719600055205,-208.0,0.0004931,30]
[330591066,1719600055248,-213.0,0.0004931,30]
[330591067,1719600055289,-208.0,0.0004931,30]
[330591068,1719600055330,-521.93,0.00049315,120]
[330591069,1719600055371,-521.93,0.00049315,120]
[330591070,1719600055411,-521.93,0.00049315,120]
[330591071,1719600055453,-521.93,0.00049315,120]
[330591072,1719600055494,-521.93,0.00049315,120]
[330591073,1719600055532,-521.93,0.00049315,120]
[330591074,1719600055570,-521.93,0.00049315,120]
[330591075,1719600055608,-521.93,0.00049315,120]
[330591076,1719600055648,-521.93,0.00049315,120]
[330591077,1719600055688,-521.93,0.00049315,120]
[330591078,1719600055730,-521.93,0.00049315,120]
[330591079,1719600055773,-521.93,0.00049315,120]
[330591080,1719600055816,-521.93,0.00049315,120]
[330591081,1719600055860,-521.93,0.00049315,120]
[330591082,1719600055897,-521.93,0.00049315,120]
[330591083,1719600055939,-521.93,0.00049315,120]
[330591084,1719600055977,-521.93,0.00049315,120]
[330591085,1719600056016,-521.93,0.00049315,120]
[330591086,1719600056053,-521.93,0.00049315,120]
[330591087,1719600056092,-521.93,0.00049315,120]
[330591088,1719600056131,-521.93,0.00049315,120]
[330591089,1719600056168,-521.93,0.00049315,120]
[330591090,1719600056209,-521.93,0.00049315,120]
[330591091,1719600056246,-521.97187764,0.00049315,120]
[330591092,1719600056285,-1688.0,0.00049315,120]
[330591093,1719600056323,-3000.0,0.00049315,120]
[330591094,1719600056362,-3000.0,0.00049315,120]
[330591095,1719600056400,-3000.0,0.00049315,120]
[330591096,1719600056446,-3000.0,0.00049315,120]
[330591097,1719600056485,-3000.0,0.00049315,120]
[330591098,1719600056526,-3000.0,0.00049315,120]
[330591099,1719600056561,-3000.0,0.00049315,120]
[330591100,1719600056596,-3000.0,0.00049315,120]
[330591101,1719600056632,-2441.13978694,0.00049315,120]
[330591102,1719600056668,-500.0,0.00049315,120]
[330591103,1719600056707,-500.0,0.00049315,120]
[330591104,1719600056750,-500.0,0.00049315,120]
[330591105,1719600056788,-500.0,0.00049315,120]
[330591106,1719600056827,-1314.48,0.00049315,110]
[330591107,1719600056864,-531.3652091,0.00049315,30]
[330591108,1719600056902,-176.54857333,0.00049315,30]
[330591109,1719600056940,-164.08594137,0.00049315,30]
[330591110,1719600056978,-230.41111186,0.00049315,30]
[330591111,1719600057014,-298.25485058,0.00049315,30]
[330591112,1719600057050,-270.68908181,0.00049315,30]
[330591113,1719600057090,-182.20675,0.00049315,30]
[330591114,1719600057128,-204.1899794,0.00049315,30]
[330591115,1719600057166,-196.87389506,0.00049315,30]
[330591116,1719600057206,-160.77977025,0.00049315,30]
[330591117,1719600057246,-200.70428027,0.00049315,30]
[330591118,1719600057285,-185.57941449,0.00049315,30]
[330591119,1719600057325,-4272.5,0.00049315,120]
[330591120,1719600057364,-4272.5,0.00049315,120]
[330591121,1719600057403,-4272.5,0.00049315,120]
[330591122,1719600057442,-4272.5,0.00049315,120]
[330591123,1719600057484,-4272.5,0.00049315,120]
[330591124,1719600057526,-4272.5,0.00049315,120]
[330591125,1719600057566,-4272.5,0.00049315,120]
[330591126,1719600057607,-4272.5,0.00049315,120]
[330591127,1719600057649,-4272.5,0.00049315,120]
[330591128,1719600057692,-4272.5,0.00049315,120]
[330591129,1719600057732,-4272.5,0.00049315,120]
[330591130,1719600057770,-4272.5,0.00049315,120]
[330591131,1719600057809,-4272.5,0.00049315,120]
[330591132,1719600057848,-4272.5,0.00049315,120]
[330591133,1719600057890,-4272.5,0.00049315,120]
[330591134,1719600057928,-4272.5,0.00049315,120]
[330591135,1719600057968,-4272.5,0.00049315,120]
[330591136,1719600058008,-4272.5,0.00049315,120]
[330591137,1719600058048,-4272.5,0.00049315,120]
[330591138,1719600058086,-4272.5,0.00049315,120]
[330591139,1719600058125,-4272.5,0.00049315,120]
[330591140,1719600058163,-4272.5,0.00049315,120]
[330591141,1719600058202,-4272.5,0.00049315,120]
[330591142,1719600058241,-4272.67039308,0.00049315,120]
[330591143,1719600058280,-831.92,0.00049315,30]
[330591144,1719600058320,-831.92,0.00049315,30]
[330591145,1719600058357,-831.92,0.00049315,30]
[330591146,1719600058396,-831.92,0.00049315,30]
[330591147,1719600058437,-831.92,0.00049315,30]
[330591148,1719600058477,-831.92,0.00049315,30]
[330591149,1719600058515,-831.92,0.00049315,30]
[330591150,1719600058552,-831.92,0.00049315,30]
[330591151,1719600058589,-831.92,0.00049315,30]
[330591152,1719600058626,-831.92,0.00049315,30]
[330591153,1719600058662,-831.92,0.00049315,30]
[330591154,1719600058698,-831.92,0.00049315,30]
[330591155,1719600058734,-831.92,0.00049315,30]
[330591156,1719600058772,-831.92,0.00049315,30]
[330591157,1719600058808,-831.92,0.00049315,30]
[330591158,1719600058848,-831.92,0.00049315,30]
[330591159,1719600058887,-831.92,0.00049315,30]
[330591160,1719600058924,-831.92,0.00049315,30]
[330591161,1719600058961,-831.92,0.00049315,30]
[330591162,1719600059002,-831.92,0.00049315,30]
[330591163,1719600059040,-831.92,0.00049315,30]
[330591164,1719600059079,-831.92,0.00049315,30]
[330591165,1719600059114,-831.92,0.00049315,30]
[330591166,1719600059149,-831.94,0.00049315,30]
[330591167,1719600059184,-500.0,0.00049315,30]
[330591168,1719600059507,-999.0,0.00049315,120]
[330591169,1719600059544,-308.56652352,0.000494,120]
[330591170,1719600059581,-1688.0,0.00049452,120]
[330591171,1719600059620,-150.0,0.00049455,120]
[330591172,1719600059657,-281.49004053,0.000495,120]
[330591173,1719600059695,-1688.0,0.00049589,120]
[330591174,1719600059738,-630.53666164,0.00049589,120]
[330591175,1719600059778,-500.0,0.00049589,120]
[330591176,1719600059815,-500.0,0.00049589,120]
[330591177,1719600059850,-840.41,0.00049589,120]
[330591178,1719600059890,-2495.51,0.00049589,120]
[330591179,1719600059933,-999.0,0.00049589,120]
[330591180,1719600059973,-150.0,0.0004962,120]
[330591181,1719600060012,-150.0,0.00049721,120]
[330591182,1719600060050,-1688.0,0.00049726,120]
[330591183,1719600060091,-158.22160165,0.000498,30]
[330591184,1719600060129,-219.39318159,0.000498,120]
[330591185,1719600060171,-2860.24,0.000498,120]
[330591186,1719600060214,-25117.41,0.000498,120]
[330591187,1719600060251,-1688.0,0.00049863,120]
[330591188,1719600060291,-600.90867268,0.00049863,120]
[330591189,1719600060333,-500.0,0.00049863,120]
[330591190,1719600060373,-2159.54,0.00049863,120]
[330591191,1719600060412,-999.0,0.00049863,120]
[330591192,1719600060452,-2333.46911193,0.00049877,120]
[330591193,1719600060495,-10165.64619458,0.0004988,30]
[330591194,1719600060540,-200.0,0.000499,120]
[330591195,1719600060578,-175.13407892,0.000499,120]
[330591196,1719600060614,-423888.51861155,0.000499,50]
[330591197,1719600110300,-668.21120511,0.00025,30]
[330591198,1719600110340,-668.21120511,0.00025,30]
[330591199,1719600111719,-181.59652801,0.000409,120]
[330591200,1719600111757,-181.596528,0.000409,120]
[330591201,1719600111795,-2473.34561093,0.00041,30]
[330591202,1719600111834,-2000.0,0.00043781,30]
[330591203,1719600111874,-1029.87865042,0.00048902,30]
[330591204,1719600111911,-1058.20220807,0.00048902,30]
[330591205,1719600111953,-974362.33236516,0.000499,50]
[330591206,1719600111992,-25000.0,0.000499,120]
[330591207,1719600112027,-300.207,0.000499,30]
[330591208,1719600112067,-2100.0,0.000499,30]
[330591209,1719600112103,-172.27777778,0.00049973,120]
[330591210,1719600112144,-50000.0,0.0005,50]
[330591211,1719600112182,-2000.0,0.0005,30]
[330591212,1719600112220,-500.0,0.0005,30]
[330591213,1719600112258,-500000.0,0.0005,30]
[330591214,1719600112294,-156.43698519,0.0005,30]
[330591215,1719600112332,-337.37089991,0.0005,30]
[330591216,1719600112371,-247.92177572,0.0005,30]
[330591217,1719600112408,-1169.80399764,0.0005,120]
[330591218,1719600112452,-606.35044595,0.0005,120]
[330591219,1719600112492,-1218.15252522,0.0005,120]
[330591220,1719600112530,-804.22598925,0.0005,120]
[330591221,1719600112569,-231.74707496,0.0005,120]
[330591222,1719600112607,-500.35421424,0.0005,120]
[330591223,1719600112645,-1556.59911274,0.0005,120]
[330591224,1719600112682,-551.46098391,0.0005,120]
[330591225,1719600112719,-152661.12,0.0005,120]
[330591226,1719600112757,-150.0,0.0005,120]
[330591227,1719600112797,-1688.0,0.0005,120]
[330591228,1719600112842,-1000.0,0.0005,120]
[330591229,1719600112879,-350.66677609,0.0005,120]
[330591230,1719600112915,-384.3534478,0.0005,120]
[330591231,1719600112952,-200.0,0.0005,120]
[330591232,1719600112988,-200.0,0.0005,120]
[330591233,1719600113024,-12732.18728243,0.0005,30]
[330591234,1719600113062,-173.04311483,0.0005,120]
[330591235,1719600113100,-840.41,0.0005,120]
[330591236,1719600113136,-200.0,0.0005,120]
[330591237,1719600113173,-151.0,0.0005011,120]
[330591238,1719600113212,-1688.0,0.00050136,120]
[330591239,1719600113248,-500.0,0.00050136,120]
[330591240,1719600113285,-500.0,0.00050136,120]
[330591241,1719600113320,-500.0,0.00050136,120]
[330591242,1719600113355,-500.0,0.00050136,120]
[330591243,1719600113391,-500.0,0.00050136,120]
[330591244,1719600113431,-500.0,0.00050136,120]
[330591245,1719600113474,-500.0,0.00050136,120]
[330591246,1719600113512,-500.0,0.00050136,120]
[330591247,1719600113549,-500.0,0.00050136,120]
[330591248,1719600113910,-500.0,0.00050136,120]
[330591249,1719600113953,-500.0,0.00050136,120]
[330591250,1719600113994,-500.0,0.00050136,120]
[330591251,1719600114035,-500.0,0.00050136,120]
[330591252,1719600114080,-500.0,0.00050136,120]
[330591253,1719600114118,-500.0,0.00050136,120]
[330591254,1719600114158,-500.0,0.00050136,120]
[330591255,1719600114203,-500.0,0.00050136,120]
[330591256,1719600114243,-500.0,0.00050136,120]
[330591257,1719600114284,-500.0,0.00050136,120]
[330591258,1719600114327,-500.0,0.00050136,120]
[330591259,1719600114367,-421.84,0.00050136,120]
[330591260,1719600114404,-2495.51,0.00050136,120]
[330591261,1719600114444,-788.52,0.00050136,120]
[330591262,1719600114487,-150.0,0.00050162,120]
[330591263,1719600114527,-150.0,0.00050203,120]
[330591264,1719600114567,-1688.0,0.00050273,120]
[330591265,1719600114604,-1688.0,0.0005041,120]
[330591266,1719600114642,-500.0,0.0005041,120]
[330591267,1719600114681,-840.41,0.0005041,120]
[330591268,1719600114721,-150.0,0.00050527,120]
[330591269,1719600114762,-150.0,0.00050546,120]
[330591270,1719600114802,-961.57722857,0.00050547,120]
[330591271,1719600114841,-500.0,0.00050684,120]
[330591272,1719600114880,-2495.51,0.00050684,120]
[330591273,1719600114918,-2159.54,0.00050684,120]
[330591274,1719600114955,-172.27777778,0.00050685,120]
[330591275,1719600114994,-150.0,0.000508,30]
[330591276,1719600115032,-840.41,0.00050821,120]
[330591277,1719600115082,-298.94890203,0.0005089,120]
[330591278,1719600115119,-500.0,0.00050958,120]
[330591279,1719600115158,-1792.26243062,0.00051,120]
[330591280,1719600115197,-250000.0,0.00051,120]
[330591281,1719600115240,-10075.27808194,0.00051,30]
[330591282,1719600115278,-402.00953863,0.00051232,120]
[330591283,1719600115319,-840.41,0.00051232,120]
[330591284,1719600115354,-2495.51,0.00051232,120]
[330591285,1719600115392,-151.0,0.00051233,120]
[330591286,1719600115432,-172.27777778,0.00051397,120]
[330591287,1719600115474,-155.0,0.000515,120]
[330591288,1719600115513,-2159.54,0.00051506,120]
[330591289,1719600115554,-150.0,0.00051602,120]
[330591290,1719600115592,-840.41,0.00051643,120]
[330591291,1719600115634,-150.0,0.00051725,120]
[330591292,1719600115676,-2495.51,0.0005178,120]
[330591293,1719600115713,-426.43833528,0.000518,30]
[330591294,1719600115751,-384.32626623,0.000518,30]
[330591295,1719600115791,-1662.2502685,0.0005188,30]
[330591296,1719600115828,-1039.0,0.00051893,30]
[330591297,1719600115867,-28795.15925491,0.000519,30]
[330591298,1719600115908,-50000.0,0.00052,52]
[330591299,1719600115946,-336.50530712,0.00052,120]
[330591300,1719600115984,-1315.0,0.00052,120]
[330591301,1719600116024,-1000.0,0.00052,120]
[330591302,1719600116061,-389.18713439,0.00052,120]
[330591303,1719600116099,-658.28312926,0.00052,120]
[330591304,1719600116136,-3000.0,0.00052054,120]
[330591305,1719600116172,-840.41,0.00052054,120]
[330591306,1719600116213,-324.93070733,0.00052054,30]
[330591307,1719600116263,-172.27777778,0.0005211,120]
[330591308,1719600116307,-3000.0,0.00052328,120]
[330591309,1719600116346,-2495.54298492,0.00052328,120]
[330591310,1719600116386,-2159.54,0.00052328,120]
[330591311,1719600116425,-151.0,0.00052356,120]
[330591312,1719600116469,-840.41,0.00052465,120]
[330591313,1719600116510,-250000.0,0.000525,120]
[330591314,1719600116547,-3000.0,0.00052602,120]
[330591315,1719600116586,-172.27777778,0.00052822,120]
[330591316,1719600116625,-3000.0,0.00052876,120]
[330591317,1719600116663,-840.41,0.00052876,120]
[330591318,1719600116700,-1758.11376544,0.0005288,30]
[330591319,1719600116738,-20000.0,0.000529,30]
[330591320,1719600116777,-203.43702869,0.00052931,60]
[330591321,1719600116816,-3000.0,0.0005315,120]
[330591322,1719600116851,-2159.54,0.0005315,120]
[330591323,1719600116887,-840.61966799,0.00053287,120]
[330591324,1719600116923,-3000.0,0.00053424,120]
[330591325,1719600116962,-151.0,0.00053479,120]
[330591326,1719600116998,-172.27777778,0.00053534,120]
[330591327,1719600117035,-3000.0,0.00053698,120]
[330591328,1719600117073,-15000.0,0.0005378,30]
[330591329,1719600117109,-2042.2053992,0.0005388,30]
[330591330,1719600117152,-1399.18255976,0.00053972,120]
[330591331,1719600117189,-2159.54,0.00053972,120]
[330591332,1719600117232,-50000.0,0.00054,54]
[330591333,1719600117271,-496.49169311,0.00054,120]
[330591334,1719600117311,-1000.0,0.00054,120]
[330591335,1719600117351,-172.27777778,0.00054247,120]
[330591336,1719600117391,-12000.0,0.0005444,30]
[330591337,1719600117428,-2000.0,0.000545,30]
[330591338,1719600117470,-2000.0,0.000545,30]
[330591339,1719600117510,-2000.0,0.000545,30]
[330591340,1719600117550,-2000.0,0.000545,30]
[330591341,1719600117586,-2000.0,0.000545,30]
[330591342,1719600117623,-2000.0,0.000545,30]
[330591343,1719600117663,-2000.0,0.000545,30]
[330591344,1719600117700,-2000.0,0.000545,30]
[330591345,1719600117736,-2000.0,0.000545,30]
[330591346,1719600117775,-2000.0,0.000545,30]
[330591347,1719600117812,-1346.0,0.000545,30]
[330591348,1719600117851,-151.0,0.00054603,120]
[330591349,1719600117887,-1039.0,0.00054624,30]
[330591350,1719600117923,-999.0,0.00054767,120]
[330591351,1719600118322,-999.0,0.00054767,120]
[330591352,1719600118378,-999.0,0.00054767,120]
[330591353,1719600118418,-999.0,0.00054767,120]
[330591354,1719600118462,-999.0,0.00054767,120]
[330591355,1719600118499,-999.0,0.00054767,120]
[330591356,1719600118534,-999.0,0.00054767,120]
[330591357,1719600118572,-999.0,0.00054767,120]
[330591358,1719600118608,-999.0,0.00054767,120]
[330591359,1719600118644,-999.0,0.00054767,120]
[330591360,1719600118681,-999.0,0.00054767,120]
[330591361,1719600118720,-999.0,0.00054767,120]
[330591362,1719600118758,-664.41388449,0.00054767,120]
[330591363,1719600118794,-500.0,0.00054794,30]
[330591364,1719600118827,-580.16550045,0.00054794,30]
[330591365,1719600118861,-500.0,0.00054794,120]
[330591366,1719600118895,-500.0,0.00054794,120]
[330591367,1719600118929,-500.0,0.00054794,120]
[330591368,1719600118965,-500.0,0.00054794,120]
[330591369,1719600119003,-500.0,0.00054794,120]
[330591370,1719600119038,-500.0,0.00054794,120]
[330591371,1719600119073,-500.0,0.00054794,120]
[330591372,1719600119109,-500.0,0.00054794,120]
[330591373,1719600119142,-500.0,0.00054794,120]
[330591374,1719600119175,-500.0,0.00054794,120]
[330591375,1719600119210,-500.0,0.00054794,120]
[330591376,1719600119243,-500.0,0.00054794,120]
[330591377,1719600119276,-500.0,0.00054794,120]
[330591378,1719600119324,-320.18147992,0.00054794,120]
[330591379,1719600119362,-2159.54,0.00054794,120]
[330591380,1719600119398,-1085.51049595,0.00054794,30]
[330591381,1719600119434,-1378.01,0.00054794,120]
[330591382,1719600119470,-1378.01,0.00054794,120]
[330591383,1719600119506,-1378.01,0.00054794,120]
[330591384,1719600119546,-1378.01,0.00054794,120]
[330591385,1719600119584,-1378.01,0.00054794,120]
[330591386,1719600119620,-1378.01,0.00054794,120]
[330591387,1719600119657,-1378.01,0.00054794,120]
[330591388,1719600119695,-1378.01,0.00054794,120]
[330591389,1719600119731,-1378.01,0.00054794,120]
[330591390,1719600119770,-1378.01,0.00054794,120]
[330591391,1719600119806,-1378.01,0.00054794,120]
[330591392,1719600119842,-1378.01,0.00054794,120]
[330591393,1719600119878,-1378.01,0.00054794,120]
[330591394,1719600119916,-1378.01,0.00054794,120]
[330591395,1719600119951,-1378.01,0.00054794,120]
[330591396,1719600119988,-1378.01,0.00054794,120]
[330591397,1719600120024,-1378.01,0.00054794,120]
[330591398,1719600120064,-1378.01,0.00054794,120]
[330591399,1719600120103,-1378.01,0.00054794,120]
[330591400,1719600120139,-1378.01,0.00054794,120]
[330591401,1719600120177,-1378.01,0.00054794,120]
[330591402,1719600120218,-1378.01,0.00054794,120]
[330591403,1719600120257,-1378.01,0.00054794,120]
[330591404,1719600120296,-1378.0284568,0.00054794,120]
[330591405,1719600120338,-500.0,0.00054794,120]
[330591406,1719600120377,-623.0,0.00054795,120]
[330591407,1719600120415,-764.0,0.00054795,120]
[330591408,1719600120458,-747.0,0.00054795,120]
[330591409,1719600120496,-611.0,0.00054795,120]
[330591410,1719600120534,-555.0,0.00054795,120]
[330591411,1719600120572,-674.0,0.00054795,120]
[330591412,1719600120610,-693.0,0.00054795,120]
[330591413,1719600120646,-711.0,0.00054795,120]
[330591414,1719600121797,208.51026906,0.00054795,30]
[330591415,1719600121835,1357.78596805,0.00054795,30]
[330591416,1719600121875,216.74417114,0.00054795,30]
[330591417,1719600122956,500.0,0.00035616,30]
[330591418,1719600123174,500.0,0.00035616,30]
[330591419,1719600123239,500.0,0.00035616,30]
[330591420,1719600123324,500.0,0.00035616,30]
[330591421,1719600123419,500.0,0.00035616,30]
[330591422,1719600123616,500.0,0.00035616,30]
[330591423,1719600123747,500.0,0.00035616,30]
[330591424,1719600123843,500.0,0.00035616,30]
[330591425,1719600124115,500.0,0.00035616,30]
[330591426,1719600124345,500.0,0.00035616,30]
[330591427,1719600124572,500.0,0.00035616,30]
[330591428,1719600124704,500.0,0.00035616,30]
[330591429,1719600125246,500.0,0.00035616,30]
[330591430,1719600125362,500.0,0.00035616,30]
[330591431,1719600125532,500.0,0.00035616,30]
[330591432,1719600125632,500.0,0.00035616,30]
[330591433,1719600125749,500.0,0.00035616,30]
[330591434,1719600130460,995.50707001,0.0004,100]
[330591435,1719600142023,-23998.99037917,0.00031556,30]
[330591436,1719600142059,-242.9684141,0.00031556,120]
[330591437,1719600142097,-452.79606547,0.00031556,30]
[330591438,1719600142131,-191.0,0.00031556,30]
[330591439,1719600142165,-482.5951181,0.00031556,30]
[330591440,1719600142200,-360.67973171,0.00031556,30]
[330591441,1719600142236,-205.84709627,0.00031556,30]
[330591442,1719600142272,-325.19815644,0.00031556,30]
[330591443,1719600142308,-197.25023904,0.00031556,30]
[330591444,1719600142350,-195.72122824,0.00031556,30]
[330591445,1719600142387,-373.80222695,0.00031556,31]
[330591446,1719600142422,-332.76582454,0.00031556,30]
[330591447,1719600142461,-500.0,0.00031556,30]
[330591448,1719600142500,-244.13429058,0.00031556,120]
[330591449,1719600142536,-222.02643706,0.00031556,30]
[330591450,1719600142573,-258.06107453,0.00031556,30]
[330591451,1719600142609,-246.93318228,0.00031556,120]
[330591452,1719600142645,-430.84060594,0.00031556,120]
[330591453,1719600142680,-192.87191478,0.00031556,30]
[330591454,1719600142717,-392.49509682,0.00031556,120]
[330591455,1719600142754,-252.68991519,0.00031556,120]
[330591456,1719600142789,-459.999999,0.00031556,30]
[330591457,1719600142826,-252.62385074,0.00031556,30]
[330591458,1719600142864,-245.95506731,0.00031556,30]
[330591459,1719600142899,-171.5898117,0.00031556,30]
[330591460,1719600142934,-285.95880237,0.00031556,30]
[330591461,1719600142969,-209.88487179,0.00031556,120]
[330591462,1719600143007,-266.0,0.00031556,30]
[330591463,1719600143042,-1000.0,0.00031556,30]
[330591464,1719600143077,-500.0,0.00031556,30]
[330591465,1719600143113,-500.0,0.00031556,30]
[330591466,1719600143149,-207.95887881,0.00031556,30]
[330591467,1719600143183,-500.0,0.00031556,30]
[330591468,1719600143220,-500.0,0.00031556,30]
[330591469,1719600143256,-500.0,0.00031556,30]
[330591470,1719600143290,-500.0,0.00031556,30]
[330591471,1719600143328,-500.0,0.00031556,30]
[330591472,1719600143363,-500.0,0.00031556,30]
[330591473,1719600143396,-500.0,0.00031556,30]
[330591474,1719600143430,-500.0,0.00031556,30]
[330591475,1719600143467,-500.0,0.00031556,30]
[330591476,1719600143504,-500.0,0.00031556,30]
[330591477,1719600143538,-513.4208289,0.00031556,30]
[330591478,1719600143572,-500.0,0.00031556,30]
[330591479,1719600143606,-276.7695442,0.00031556,30]
[330591480,1719600143641,-500.0,0.00031556,30]
[330591481,1719600143676,-500.0,0.00031556,30]
[330591482,1719600143710,-500.0,0.00031556,30]
[330591483,1719600143745,-500.0,0.00031556,30]
[330591484,1719600143780,-500.0,0.00031556,30]
[330591485,1719600143817,-500.0,0.00031556,30]
[330591486,1719600143854,-500.0,0.00031556,30]
[330591487,1719600143890,-500.0,0.00031556,30]
[330591488,1719600143926,-500.0,0.00031556,30]
[330591489,1719600143963,-500.0,0.00031556,30]
[330591490,1719600144000,-500.0,0.00031556,30]
[330591491,1719600144036,-500.0,0.00031556,30]
[330591492,1719600144074,-500.0,0.00031556,30]
[330591493,1719600144112,-500.0,0.00031556,30]
[330591494,1719600144148,-500.0,0.00031556,30]
[330591495,1719600144184,-500.0,0.00031556,30]
[330591496,1719600144222,-500.0,0.00031556,30]
[330591497,1719600144259,-500.0,0.00031556,30]
[330591498,1719600144297,-500.0,0.00031556,30]
[330591499,1719600144335,-500.0,0.00031556,30]
[330591500,1719600144371,-500.0,0.00031556,30]
[330591501,1719600144407,-500.0,0.00031556,30]
[330591502,1719600144442,-500.0,0.00031556,30]
[330591503,1719600144481,-500.0,0.00031556,30]
[330591504,1719600144520,-500.0,0.00031556,30]
[330591505,1719600144557,-500.0,0.00031556,30]
[330591506,1719600144595,-500.0,0.00031556,30]
[330591507,1719600144632,-500.0,0.00031556,30]
[330591508,1719600144670,-500.0,0.00031556,30]
[330591509,1719600144709,-500.0,0.00031556,30]
[330591510,1719600144746,-500.0,0.00031556,30]
[330591511,1719600144786,-500.0,0.00031556,30]
[330591512,1719600144823,-500.0,0.00031556,30]
[330591513,1719600144858,-500.0,0.00031556,30]
[330591514,1719600144893,-500.0,0.00031556,30]
[330591515,1719600144928,-500.0,0.00031556,30]
[330591516,1719600144965,-500.0,0.00031556,30]
[330591517,1719600145002,-500.0,0.00031556,30]
[330591518,1719600145040,-500.0,0.00031556,30]
[330591519,1719600145078,-500.0,0.00031556,30]
[330591520,1719600145118,-500.0,0.00031556,30]
[330591521,1719600145156,-500.0,0.00031556,30]
[330591522,1719600145193,-500.0,0.00031556,30]
[330591523,1719600145231,-500.0,0.00031556,30]
[330591524,1719600145268,-500.0,0.00031556,30]
[330591525,1719600145558,-500.0,0.00031556,30]
[330591526,1719600145599,-500.0,0.00031556,30]
[330591527,1719600145638,-500.0,0.00031556,30]
[330591528,1719600145677,-500.0,0.00031556,30]
[330591529,1719600145715,-500.0,0.00031556,30]
[330591530,1719600145752,-500.0,0.00031556,30]
[330591531,1719600145790,-154.21448115,0.00031556,30]